bitfinex/quotes_SOLUSD_20250310
["timestamp","ask_amount","ask_price","bid_price","bid_amount"]
[1741576830624,1.97291015,127.08,127.07,18.72249634]
[1741576830817,5.776e-05,127.08,127.07,18.72249634]
[1741576831694,5.776e-05,127.08,127.07,7.8696]
[1741576831899,5.776e-05,127.08,127.06,26.04299634]
[1741576832599,2.507e-05,127.08,127.07,54.2644817]
[1741576832934,7.8799,127.14,127.08,18.64964886]
[1741576833111,7.8799,127.14,127.12,10.85289634]
[1741576833316,100.95558056,127.17,127.13,10.85289634]
[1741576833631,100.95558056,127.17,127.13,7.8659]
[1741576834138,89.91052442,127.17,127.13,7.8659]
[1741576834351,94.84459634,127.17,127.13,7.8659]
[1741576836334,94.84459634,127.17,127.12,7.32]
[1741576836540,18.64964886,127.16,127.12,7.32]
[1741576836851,10.85289634,127.15,127.09,26.04129634]
[1741576837047,10.85289634,127.13,127.08,7.8689]
[1741576837354,10.85289634,127.12,127.07,18.72229634]
[1741576837534,10.85289634,127.12,127.07,26.04229634]
[1741576837725,16.87699634,127.13,127.07,26.04229634]
[1741576837926,16.87699634,127.13,127.08,10.85289634]
[1741576838345,22.973815,127.13,127.08,16.949715]
[1741576839220,6.0241,127.13,127.11,16.949715]
[1741576839850,6.0241,127.13,127.11,24.816615]
[1741576840024,6.0241,127.13,127.11,7.8669]
[1741576840450,6.0241,127.13,127.1,24.817215]
[1741576840648,6.0241,127.13,127.09,24.817915]
[1741576841929,6.0241,127.13,127.09,32.137915]
[1741576842749,6.0241,127.13,127.08,16.949715]
[1741576843053,99.349715,127.12,127.07,24.269715]
[1741576843244,82.4,127.12,127.07,24.269715]
[1741576843424,82.4,127.12,127.08,16.949715]
[1741576843619,6.0241,127.13,127.09,16.949715]
[1741576843820,6.0241,127.13,127.11,16.949715]
[1741576844855,6.0241,127.13,127.1,16.949715]
[1741576845625,6.0241,127.13,127.09,16.949715]
[1741576845827,6.0241,127.13,127.09,24.817615]
[1741576846050,2.00223454,127.12,127.09,24.817615]
[1741576846222,2.00223454,127.12,127.09,7.8679]
[1741576846654,2.00223454,127.12,127.09,24.817615]
[1741576847249,2.00223454,127.12,127.1,16.949715]
[1741576847560,1.97223454,127.11,127.1,16.949715]
[1741576847865,1.97223454,127.11,127.1,24.817515]
[1741576848742,1.97223454,127.11,127.1,7.8678]
[1741576849033,0.03,127.12,127.1,24.817515]
[1741576849731,0.03,127.12,127.1,7.8678]
[1741576850357,0.03,127.12,127.1,24.817515]
[1741576851654,1.97235923,127.11,127.1,24.817515]
[1741576852357,1.97235923,127.11,127.09,16.949715]
[1741576853036,1.97235923,127.11,127.06,81.563]
[1741576853248,1.97235923,127.11,127.07,7.8696]
[1741576853861,9.83965923,127.11,127.06,24.882815]
[1741576854158,1.97235923,127.11,127.07,16.949715]
[1741576854364,1.97235923,127.11,127.08,7.869]
[1741576854545,1.97235923,127.1,127.08,7.869]
[1741576855143,1.97235923,127.1,127.09,16.949715]
[1741576855749,1.97235923,127.1,127.08,24.818715]
[1741576855947,1.97235923,127.1,127.07,16.949715]
[1741576856167,1.97235923,127.11,127.07,7.8696]
[1741576856777,1.97235923,127.11,127.07,24.819315]
[1741576857261,1.97235923,127.11,127.08,16.949715]
[1741576857781,3.58165923,127.11,127.06,17.012715]
[1741576857932,18.92207423,127.1,127.06,0.063]
[1741576858133,6.257,127.07,127.06,0.063]
[1741576858348,23.206715,127.07,127.06,0.063]
[1741576858871,6.257,127.07,127.06,0.063]
[1741576859784,1.97235923,127.07,127.06,0.063]
[1741576862575,9.84195923,127.07,127.06,0.063]
[1741576862774,45.44132309,127.07,127.06,0.063]
[1741576862947,53.54832309,127.07,127.06,0.063]
[1741576863343,20.0,127.04,127.02,0.063]
[1741576863543,23.547915,127.03,127.02,0.063]
[1741576864957,6.5982,127.03,127.02,0.063]
[1741576865143,88.4257,127.06,127.02,0.063]
[1741576865338,1.97235923,127.03,127.02,0.063]
[1741576865546,1.97235923,127.03,127.02,17.012715]
[1741576866172,1.97235923,127.03,127.02,33.96243]
[1741576866581,1.97235923,127.05,127.02,0.063]
[1741576866881,1.97235923,127.05,127.04,16.949715]
[1741576867039,1.97235923,127.05,127.04,24.821215]
[1741576867981,9.84145923,127.08,127.04,16.949715]
[1741576868155,9.84145923,127.08,127.03,24.821615]
[1741576868351,26.79117423,127.08,127.03,24.821615]
[1741576868579,1.97235923,127.08,127.03,24.821615]
[1741576868879,1.97235923,127.08,127.04,16.949715]
[1741576869179,1.97235923,127.07,127.03,16.949715]
[1741576869401,1.97235923,127.07,127.03,24.821615]
[1741576869603,2.00235923,127.07,127.03,24.821615]
[1741576869780,18.95207423,127.07,127.02,24.885315]
[1741576870095,16.949715,127.06,127.02,0.063]
[1741576870476,18.92207423,127.06,127.02,0.063]
[1741576871499,1.97235923,127.05,127.02,0.063]
[1741576872490,1.97235923,127.05,127.02,17.012715]
[1741576872785,1.97235923,127.06,127.04,16.949715]
[1741576873093,1.97235923,127.06,127.02,0.063]
[1741576873569,1.97235923,127.06,127.02,24.885415]
[1741576874487,1.97235923,127.06,127.03,16.949715]
[1741576874659,1.97235923,127.06,127.04,16.949715]
[1741576875065,1.97235923,127.06,127.03,16.949715]
[1741576875874,1.97235923,127.06,127.04,7.8715]
[1741576876482,1.97235923,127.06,127.04,24.821215]
[1741576877092,1.97235923,127.06,127.04,7.8715]
[1741576878088,1.97235923,127.06,127.02,17.012715]
[1741576878265,1.97235923,127.06,127.02,7.9355]
[1741576878884,1.97235923,127.06,127.02,24.885215]
[1741576879263,18.92207423,127.06,127.02,7.9355]
[1741576880191,1.97235923,127.05,127.02,7.9355]
[1741576881999,1.5375,127.04,127.02,0.063]
[1741576882199,42.15646386,127.03,127.02,0.063]
[1741576882568,1.5375,126.98,126.94,0.063]
[1741576882769,16.949715,126.96,126.94,0.063]
[1741576882963,6.5571,126.97,126.94,7.9407]
[1741576883184,6.5571,126.97,126.94,24.890415]
[1741576883375,1.5375,126.98,126.94,0.063]
[1741576883575,1.5375,126.98,126.94,7.9405]
[1741576883785,1.5375,126.98,126.94,24.890215]
[1741576883984,1.97235923,126.97,126.94,24.890215]
[1741576884283,18.92207423,126.97,126.94,0.063]
[1741576884475,26.79797423,126.97,126.94,0.063]
[1741576884778,16.949715,126.96,126.94,0.063]
[1741576884979,16.949715,126.95,126.94,0.063]
[1741576885204,18.92207423,126.96,126.94,0.063]
[1741576885408,16.949715,126.95,126.94,0.063]
[1741576885698,18.92207423,126.96,126.94,0.063]
[1741576885997,35.59936386,126.95,126.94,0.063]
[1741576886201,37.57172309,126.95,126.94,0.063]
[1741576887193,52.00562309,126.95,126.94,0.063]
[1741576887397,20.0,126.92,126.91,0.063]
[1741576887597,55.59936386,126.92,126.9,22.17214394]
[1741576887797,99.349715,126.93,126.9,22.17214394]
[1741576888412,35.59936386,126.94,126.9,30.05224394]
[1741576888708,6.5568,126.95,126.92,16.949715]
[1741576888882,23.506515,126.95,126.9,22.17214394]
[1741576889210,16.949715,126.94,126.9,30.05224394]
[1741576889408,23.506515,126.95,126.9,30.05224394]
[1741576889583,6.5568,126.95,126.9,47.00195894]
[1741576889907,16.949715,126.97,126.91,16.949715]
[1741576890107,16.949715,126.92,126.9,22.17214394]
[1741576890411,16.949715,126.93,126.9,22.17214394]
[1741576890615,35.59936386,126.94,126.9,22.17214394]
[1741576890909,16.949715,126.95,126.9,30.05214394]
[1741576891107,35.59936386,126.95,126.9,47.00185894]
[1741576891307,99.349715,126.96,126.9,47.00185894]
[1741576892288,99.349715,126.96,126.91,16.949715]
[1741576892489,99.349715,126.96,126.9,47.00185894]
[1741576892885,82.4,126.96,126.92,16.949715]
[1741576893083,18.64964886,126.97,126.93,16.949715]
[1741576893286,35.59936386,126.97,126.92,16.949715]
[1741576894092,35.59936386,126.97,126.93,7.8783]
[1741576894294,18.64964886,126.97,126.93,7.8783]
[1741576894494,107.508315,126.98,126.93,24.828015]
[1741576895096,107.508315,126.98,126.93,7.8783]
[1741576895398,1.97519638,126.97,126.93,24.828015]
[1741576895795,1.97519638,126.97,126.95,16.949715]
[1741576896301,1.97519638,126.97,126.95,7.8766]
[1741576896687,1.97519638,126.97,126.94,7.8777]
[1741576896888,16.949715,126.99,126.94,7.8777]
[1741576897085,35.59936386,126.99,126.93,16.949715]
[1741576897284,16.949715,126.98,126.93,16.949715]
[1741576897899,35.59936386,126.99,126.93,16.949715]
[1741576898104,18.64964886,126.98,126.93,16.949715]
[1741576898705,18.64964886,126.98,126.94,7.8777]
[1741576898891,82.4,127.0,126.95,16.949715]
[1741576899200,1.97503036,126.97,126.96,16.949715]
[1741576899499,1.97503036,126.97,126.95,16.949715]
[1741576900483,16.949715,127.0,126.95,16.949715]
[1741576900683,37.14806386,127.01,126.95,16.949715]
[1741576900899,37.14806386,127.01,126.96,7.8764]
[1741576901091,18.498415,127.01,126.96,24.826115]
[1741576901480,1.5487,127.01,126.96,24.826115]
[1741576901802,16.949715,127.0,126.96,7.8764]
[1741576902107,16.949715,126.98,126.93,16.949715]
[1741576902301,101.32431473,127.0,126.94,16.949715]
[1741576903110,1.97459973,126.99,126.94,16.949715]
[1741576903299,1.97459973,126.99,126.95,7.8771]
[1741576903606,1.97459973,126.99,126.96,16.949715]
[1741576903782,1.97459973,126.99,126.95,7.8771]
[1741576903783,1.97459973,126.99,126.95,24.826815]
[1741576903986,1.97459973,126.99,126.95,7.8771]
[1741576904384,1.97459973,126.99,126.95,24.826815]
[1741576904608,18.92431473,127.0,126.95,24.826815]
[1741576904918,1.97459973,127.0,126.96,16.949715]
[1741576905083,1.97459973,127.0,126.97,16.949715]
[1741576905616,1.97459973,127.0,126.98,7.8752]
[1741576906211,0.03,127.0,126.98,7.8752]
[1741576906616,0.03,127.0,126.98,24.824915]
[1741576907289,0.03,127.0,126.98,7.8752]
[1741576908708,16.979715,127.0,126.95,16.949715]
[1741576908912,16.979715,127.0,126.95,7.8768]
[1741576909208,16.949715,126.98,126.94,7.8775]
[1741576909515,35.59936386,126.99,126.94,24.827215]
[1741576909715,1.97460458,126.99,126.95,16.949715]
[1741576910013,1.97460458,126.99,126.96,16.949715]
[1741576910484,1.97460458,126.99,126.95,16.949715]
[1741576910820,0.03,127.0,126.95,16.949715]
[1741576911308,16.979715,127.0,126.95,16.949715]
[1741576911510,0.03,127.0,126.95,16.949715]
[1741576911686,0.03,127.0,126.96,16.949715]
[1741576911889,0.03,127.0,126.95,16.949715]
[1741576912118,16.979715,127.0,126.95,16.949715]
[1741576912508,0.03,127.0,126.95,16.949715]
[1741576912811,16.979715,127.0,126.95,16.949715]
[1741576913902,0.03,127.0,126.95,24.826315]
[1741576914223,1.97460172,126.99,126.95,24.826315]
[1741576914598,1.97460172,126.99,126.97,16.949715]
[1741576914802,1.97460172,126.99,126.96,16.949715]
[1741576915509,0.03,127.0,126.96,16.949715]
[1741576915893,0.03,127.0,126.95,7.8766]
[1741576916219,0.03,127.0,126.97,24.825015]
[1741576918800,0.03,127.0,126.98,16.949715]
[1741576919011,0.03,127.0,126.99,16.949715]
[1741576919210,0.03,127.0,126.98,16.949715]
[1741576920098,0.03,127.0,126.98,24.824515]
[1741576920292,0.03,127.0,126.98,7.8748]
[1741576920605,0.03,127.0,126.98,24.824515]
[1741576921320,0.03,127.0,126.96,16.949715]
[1741576921529,16.979715,127.0,126.95,24.826815]
[1741576921908,0.03,127.0,126.95,24.826815]
[1741576922109,1.97445272,126.99,126.95,24.826815]
[1741576922527,1.97445272,126.99,126.95,16.949715]
[1741576922903,9.84915272,126.99,126.94,32.227115]
[1741576923102,1.97445272,126.98,126.94,16.949715]
[1741576923916,1.97445272,126.98,126.93,32.187815]
[1741576924229,26.79976772,126.98,126.93,32.187815]
[1741576924608,26.79976772,126.98,126.93,24.309715]
[1741576924930,9.85005272,126.98,126.93,24.309715]
[1741576925135,1.97445272,126.98,126.95,16.949715]
[1741576925324,1.97445272,126.97,126.95,16.949715]
[1741576926427,1.97445272,126.97,126.95,7.8768]
[1741576926595,1.97445272,126.99,126.95,24.826515]
[1741576926799,1.97445272,126.99,126.96,16.949715]
[1741576927126,16.949715,126.98,126.93,15.2381]
[1741576927315,16.949715,126.98,126.93,32.187815]
[1741576927520,1.97445272,126.99,126.95,16.949715]
[1741576928322,1.97445272,126.98,126.95,24.826715]
[1741576929729,1.97445272,126.97,126.95,24.826715]
[1741576929932,1.97445272,126.97,126.96,16.949715]
[1741576930325,1.97445272,126.97,126.96,24.826115]
[1741576931132,1.97445272,126.99,126.96,24.826115]
[1741576932236,9.84915272,126.99,126.95,7.8768]
[1741576932432,26.79886772,126.99,126.94,16.949715]
[1741576932734,18.92416772,126.98,126.93,24.289715]
[1741576932912,18.92416772,126.98,126.92,16.949715]
[1741576932913,16.949715,126.97,126.92,16.949715]
[1741576933110,16.949715,126.96,126.91,7.8793]
[1741576933313,35.59936386,126.97,126.91,24.829015]
[1741576933608,1.97445272,126.96,126.91,24.829015]
[1741576933808,1.97445272,126.96,126.92,16.949715]
[1741576934036,1.97445272,126.96,126.93,16.949715]
[1741576934332,26.80066772,126.96,126.9,225.13514394]
[1741576934521,26.80066772,126.96,126.9,242.08485894]
[1741576934721,1.97445272,126.95,126.91,16.949715]
[1741576935409,1.97445272,126.95,126.91,24.828815]
[1741576935732,1.97445272,126.95,126.92,16.949715]
[1741576936228,1.97445272,126.94,126.92,16.949715]
[1741576937350,1.97445272,126.94,126.93,7.8783]
[1741576937519,82.4,126.97,126.93,7.8783]
[1741576938045,82.4,126.97,126.94,16.949715]
[1741576938631,82.4,126.97,126.93,7.8783]
[1741576938827,82.4,126.97,126.91,19.6988]
[1741576938828,107.225715,126.97,126.92,16.949715]
[1741576939026,1.97497138,126.96,126.92,16.949715]
[1741576940249,0.03,126.94,126.92,16.949715]
[1741576940826,0.03,126.94,126.9,217.79514394]
[1741576941042,0.03,126.94,126.9,234.74485894]
[1741576941347,16.949715,126.93,126.9,22.23514394]
[1741576941645,26.434415,126.94,126.9,22.23514394]
[1741576941847,1.97497138,126.93,126.9,22.23514394]
[1741576942446,18.92468638,126.93,126.9,22.23514394]
[1741576942769,8.16337138,126.92,126.9,22.23514394]
[1741576943263,8.16337138,126.92,126.9,30.11514394]
[1741576943620,8.16337138,126.92,126.9,22.23514394]
[1741576943847,1.97497138,126.91,126.9,39.18485894]
[1741576944062,1.97497138,126.91,126.9,47.06505894]
[1741576944953,1.97497138,126.93,126.9,22.23514394]
[1741576945863,9.85327138,126.93,126.9,22.23514394]
[1741576946064,1.97497138,126.92,126.9,22.23514394]
[1741576947146,18.64964886,126.91,126.9,22.23514394]
[1741576947351,20.62462024,126.91,126.9,22.23514394]
[1741576947547,119.97433524,126.91,126.9,22.23514394]
[1741576947756,84.37497138,126.91,126.9,22.23514394]
[1741576948870,103.02462024,126.91,126.9,22.23514394]
[1741576949172,110.90412024,126.91,126.9,22.23514394]
[1741576949376,127.85383524,126.91,126.9,22.23514394]
[1741576949581,103.02462024,126.91,126.9,22.23514394]
[1741576949875,127.85383524,126.91,126.9,22.23514394]
[1741576950079,134.50873524,126.91,126.9,22.23514394]
[1741576951574,8.62987138,126.91,126.9,22.23514394]
[1741576952346,1.97497138,126.91,126.9,22.23514394]
[1741576952565,1.97497138,126.91,126.9,47.06505894]
[1741576952983,1.97497138,126.91,126.9,22.23514394]
[1741576953778,1.97497138,126.92,126.9,47.06505894]
[1741576954158,1.97497138,126.92,126.91,16.949715]
[1741576955170,1.97497138,126.93,126.91,16.949715]
[1741576956070,1.97497138,126.93,126.91,24.828715]
[1741576956454,1.97497138,126.93,126.92,24.269715]
[1741576957559,0.03,126.94,126.92,192.769715]
[1741576957754,0.03,126.94,126.93,16.949715]
[1741576958075,0.03,127.0,126.94,7.8777]
[1741576958267,0.03,127.0,126.96,16.949715]
[1741576958468,0.03,127.0,126.94,7.8777]
[1741576958667,1.97473704,126.99,126.96,16.949715]
[1741576958976,1.97473704,126.99,126.97,16.949715]
[1741576959162,1.97473704,126.99,126.98,16.949715]
[1741576959963,0.03,127.0,126.98,16.949715]
[1741576960285,0.03,127.0,126.99,7.8746]
[1741576960962,0.03,127.0,126.99,24.7711672]
[1741576961156,2.00429131,127.0,126.99,24.7711672]
[1741576962887,2.00429131,127.0,126.99,7.8214522]
[1741576963066,2.00429131,127.0,126.99,24.7711672]
[1741576963482,0.03,127.0,126.99,24.7711672]
[1741576965982,0.0001,127.0,126.99,24.7711672]
[1741576966173,0.0001,127.0,126.99,193.2711672]
[1741576966363,0.0001,127.0,126.99,211.92081606]
[1741576967775,0.0001,127.0,126.99,523.92081606]
[1741576968577,0.0001,127.0,126.99,193.2711672]
[1741576970764,0.0001,127.0,126.99,200.5911672]
[1741576970969,0.0001,127.0,126.99,96.6414522]
[1741576971177,0.0001,127.0,126.99,113.5911672]
[1741576971859,0.0001,127.0,126.99,96.6414522]
[1741576972264,0.0001,127.0,126.99,113.5911672]
[1741576972989,0.0001,127.0,126.99,132.24081606]
[1741576973872,0.0001,127.0,126.99,113.5911672]
[1741576974497,0.0001,127.0,126.99,132.24081606]
[1741576975898,0.0001,127.0,126.99,444.30381606]
[1741576977001,0.0001,127.0,126.99,531.30381606]
[1741576977407,0.0001,127.0,126.99,219.30381606]
[1741576979909,0.0001,127.0,126.99,200.6541672]
[1741576980902,0.0001,127.0,126.99,219.30381606]
[1741576982103,0.0001,127.0,126.99,200.6541672]
[1741576986699,0.0001,127.0,126.99,219.30381606]
[1741576987109,0.03,127.06,127.04,16.949715]
[1741576987321,0.03,127.06,127.02,16.949715]
[1741576987501,24.850315,127.06,127.01,16.949715]
[1741576987702,7.9006,127.06,127.01,16.949715]
[1741576988024,0.03,127.06,127.02,16.949715]
[1741576988207,0.03,127.06,127.02,24.822115]
[1741576988918,0.03,127.06,127.02,16.949715]
[1741576989434,0.03,127.06,127.01,24.822815]
[1741576989648,35.62936386,127.06,127.01,16.949715]
[1741576990229,26.55014886,127.06,127.01,18.73303851]
[1741576990952,0.03,127.06,127.02,10.85983851]
[1741576992245,0.03,127.06,127.03,10.85983851]
[1741576992449,0.03,127.06,127.03,18.73133851]
[1741576992648,0.03,127.06,127.03,7.8715]
[1741576993644,0.03,127.06,127.03,18.73133851]
[1741576993949,0.03,127.06,127.04,10.85983851]
[1741576994326,0.03,127.06,127.05,7.8709]
[1741576994741,0.03,127.06,127.03,10.85983851]
[1741576995125,0.03,127.06,127.03,7.8719]
[1741576995465,10.88983851,127.06,127.01,179.35983851]
[1741576995748,10.85983851,127.05,127.0,18.17983851]
[1741576996836,18.73083851,127.05,127.0,18.17983851]
[1741576997038,7.871,127.05,127.0,18.17983851]
[1741576997854,8.1111,127.04,127.0,7.32]
[1741576998150,18.97093851,127.04,126.99,10.92283851]
[1741576998349,37.45313851,127.0,126.99,0.063]
[1741576998647,46.84493851,127.0,126.99,0.063]
[1741576999342,48.81872411,127.0,126.99,0.063]
[1741576999546,67.46837297,127.0,126.91,92.35983851]
[1741576999751,10.85983851,126.95,126.9,40.41498245]
[1741577000265,16.9991551,126.95,126.9,46.55429904]
[1741577000448,18.5819551,126.94,126.9,29.55514394]
[1741577000647,7.8795,126.91,126.9,22.23514394]
[1741577000974,24.8774551,126.93,126.9,22.23514394]
[1741577001160,16.9991551,126.92,126.9,22.23514394]
[1741577001358,16.9991551,126.91,126.9,22.23514394]
[1741577001659,35.64880396,126.91,126.9,22.23514394]
[1741577001965,20.0,126.88,126.87,2.81882]
[1741577002262,36.9991551,126.88,126.87,2.81882]
[1741577002457,57.25510396,126.88,126.87,2.81882]
[1741577002659,38.6054551,126.88,126.87,2.81882]
[1741577002968,25.0669407,126.91,126.87,2.81882]
[1741577003143,8.0677856,126.91,126.87,27.6999751]
[1741577003337,6.094,126.91,126.88,16.9991551]
[1741577003664,35.64880396,126.94,126.88,16.9991551]
[1741577003958,35.64880396,126.94,126.87,10.70082]
[1741577003959,5.22317617,126.9,126.89,24.3191551]
[1741577004742,5.22317617,126.9,126.89,32.1999551]
[1741577005058,11.84927235,126.9,126.89,16.9991551]
[1741577005865,82.84591686,126.94,126.89,16.9991551]
[1741577006361,65.84676176,126.94,126.89,24.8797551]
[1741577006550,53.99748941,126.94,126.9,16.9991551]
[1741577006753,53.99748941,126.94,126.89,24.8797551]
[1741577007443,53.99748941,126.94,126.9,16.9991551]
[1741577008463,53.99748941,126.94,126.9,24.8787551]
[1741577009152,16.9991551,126.92,126.86,16.9991551]
[1741577009354,16.9991551,126.91,126.86,16.9991551]
[1741577009861,16.9991551,126.92,126.86,16.9991551]
[1741577010866,16.9991551,126.91,126.86,24.8816551]
[1741577011562,82.4,126.93,126.88,16.9991551]
[1741577011767,82.4,126.93,126.89,16.9991551]
[1741577011938,23.5995551,126.94,126.89,16.9991551]
[1741577012138,23.5995551,126.94,126.88,16.9991551]
[1741577012344,16.9991551,126.93,126.88,16.9991551]
[1741577012647,35.64880396,126.93,126.88,16.9991551]
[1741577013074,35.64880396,126.93,126.88,24.8805551]
[1741577013766,16.9991551,126.92,126.86,164.721447]
[1741577013954,16.9991551,126.92,126.86,24.8816551]
[1741577014264,16.9991551,126.92,126.87,16.9991551]
[1741577014567,35.64880396,126.93,126.88,16.9991551]
[1741577014967,43.52710396,126.93,126.88,16.9991551]
[1741577015262,16.9991551,126.92,126.87,16.9991551]
[1741577015452,43.52710396,126.93,126.87,16.9991551]
[1741577016065,16.9991551,126.93,126.87,16.9991551]
[1741577016258,11.84927235,126.93,126.89,16.9991551]
[1741577016569,28.84842745,126.93,126.88,16.9991551]
[1741577017062,28.84842745,126.93,126.87,16.9991551]
[1741577017365,16.9991551,126.93,126.87,16.9991551]
[1741577017569,18.64964886,126.87,126.82,16.9991551]
[1741577017757,18.64964886,126.87,126.81,0.063]
[1741577017758,16.9991551,126.85,126.81,0.063]
[1741577017954,16.9991551,126.83,126.81,0.063]
[1741577018143,16.9991551,126.82,126.81,0.063]
[1741577018346,18.64964886,126.85,126.81,0.063]
[1741577018542,16.9991551,126.85,126.81,0.063]
[1741577018747,35.64880396,126.87,126.82,16.9991551]
[1741577018958,133.3599551,126.88,126.83,16.9991551]
[1741577019160,26.6408,126.88,126.84,16.9991551]
[1741577019563,6.6408,126.88,126.84,16.9991551]
[1741577019761,11.84927235,126.9,126.83,164.158947]
[1741577020077,11.84927235,126.9,126.87,16.9991551]
[1741577020453,6.1155,126.92,126.87,16.9991551]
[1741577020853,24.8769551,126.94,126.88,16.9991551]
[1741577021062,6.5068,126.95,126.88,81.5]
[1741577021262,11.84927235,126.97,126.94,16.9991551]
[1741577021550,11.84927235,126.97,126.95,16.9991551]
[1741577021764,11.84927235,126.97,126.95,24.8761551]
[1741577022175,11.84927235,126.97,126.95,16.9991551]
[1741577022377,11.84927235,126.97,126.95,27.17720757]
[1741577022568,11.84927235,126.97,126.94,27.17720757]
[1741577022960,11.84927235,126.97,126.95,27.17720757]
[1741577023173,11.84927235,126.97,126.94,27.17720757]
[1741577023559,11.84927235,126.97,126.95,27.17720757]
[1741577023960,11.84927235,126.97,126.96,27.17720757]
[1741577024563,11.87927235,126.97,126.95,27.17720757]
[1741577024870,11.87927235,126.97,126.96,27.17720757]
[1741577025075,0.03,126.97,126.96,27.17720757]
[1741577026460,0.03,126.97,126.96,35.05360757]
[1741577027479,0.03,126.97,126.95,27.17720757]
[1741577028059,0.03,126.97,126.96,27.17720757]
[1741577028681,0.03,126.97,126.96,35.05360757]
[1741577029078,0.03,126.97,126.96,219.06976214]
[1741577029580,0.03,126.97,126.96,191.89255457]
[1741577030083,0.03,126.97,126.96,503.89255457]
[1741577030459,0.03,126.97,126.96,531.06976214]
[1741577032194,0.03,126.97,126.96,191.89255457]
[1741577036116,0.03,126.97,126.92,488.536047]
[1741577036421,0.03,126.97,126.94,27.17720757]
[1741577036605,0.03,126.97,126.96,27.17720757]
[1741577037179,0.03,126.97,126.95,27.17720757]
[1741577038487,0.03,126.97,126.95,35.05410757]
[1741577038689,0.03,126.97,126.96,27.17720757]
[1741577039811,0.03,126.97,126.95,35.05410757]
[1741577041097,0.03,126.97,126.95,27.17720757]
[1741577042117,0.03,126.97,126.95,35.05420757]
[1741577042323,0.03,126.97,126.96,27.17720757]
[1741577042826,0.03,126.97,126.95,35.05420757]
[1741577043035,0.03,126.97,126.95,7.877]
[1741577043248,0.03,126.97,126.95,35.05420757]
[1741577043838,0.03,126.97,126.96,27.17720757]
[1741577044429,0.03,126.97,126.96,16.98258619]
[1741577044844,0.03,126.97,126.95,16.98258619]
[1741577045147,0.03,126.97,126.94,16.98258619]
[1741577045343,0.03,126.97,126.93,164.717047]
[1741577045650,0.03,126.97,126.93,156.838947]
[1741577045852,0.03,126.97,126.93,173.82153319]
[1741577046621,0.03,126.97,126.93,181.69973319]
[1741577047127,0.03,126.97,126.94,16.98258619]
[1741577047847,0.03,126.97,126.95,16.98258619]
[1741577048646,0.03,126.97,126.96,16.98258619]
[1741577050651,0.03,126.97,126.96,24.85898619]
[1741577056853,0.0001,126.97,126.96,181.69793319]
[1741577057062,0.0001,126.97,126.96,198.68051938]
[1741577057380,0.0001,126.97,126.96,217.33016824]
[1741577057536,0.0001,126.97,126.96,218.88636824]
[1741577058056,0.0001,126.97,126.96,530.88636824]
[1741577059667,0.0001,126.97,126.96,495.25413319]
[1741577059873,0.0001,126.97,126.96,478.271547]
[1741577060071,0.0001,126.97,126.96,495.25413319]
[1741577060378,0.0001,126.97,126.96,181.69793319]
[1741577060562,0.0001,126.97,126.96,181.76093319]
[1741577061664,0.0001,126.97,126.96,217.39316824]
[1741577063164,0.0001,126.97,126.96,529.39316824]
[1741577064150,0.0001,126.97,126.96,531.02176824]
[1741577064352,1.5662,127.04,126.97,18.64964886]
[1741577064564,1.5662,127.04,127.01,16.98258619]
[1741577065074,6.6902,127.05,127.02,16.98258619]
[1741577065286,6.6902,127.05,127.01,16.98258619]
[1741577065782,1.9737922,127.03,127.0,16.98258619]
[1741577066188,1.9737922,127.03,126.99,16.98258619]
[1741577066481,1.9737922,127.03,127.0,16.98258619]
[1741577066651,1.9737922,127.03,127.01,16.98258619]
[1741577067081,1.9737922,127.02,127.01,16.98258619]
[1741577068579,1.9737922,127.02,127.01,24.85588619]
[1741577072665,1.9737922,127.04,127.01,24.85588619]
[1741577073789,0.03,127.02,127.01,24.85588619]
[1741577075304,0.03,127.02,127.0,24.85628619]
[1741577075900,2.0037922,127.02,127.0,24.85628619]
[1741577077102,1.9737922,127.01,127.0,7.8737]
[1741577077466,1.9737922,127.01,127.0,24.85628619]
[1741577078572,0.03,127.02,127.0,24.85628619]